[Event "Late-Titled-Tuesday-Blitz-January-16-2024"]
[Site "Chess.com"]
[Date "2024.01.16"]
[Round "4"]
[White "BilodeauA"]
[Black "Polish_fighter3000"]
[Result "0-1"]
[WhiteElo "2903"]
[BlackElo "3102"]
[TimeControl "180+1"]
[EndTime "14:39:13 PST"]
[Termination "Polish_fighter3000 won on time"]

1. e4 {[%clk 0:02:29]} 1... e5 {[%clk 0:02:56.4]} 2. Nf3 {[%clk 0:02:29.2]} 2...
Nc6 {[%clk 0:02:56.8]} 3. Bc4 {[%clk 0:02:29.5]} 3... Bc5 {[%clk 0:02:56.5]} 4.
d3 {[%clk 0:02:29.3]} 4... Nf6 {[%clk 0:02:56.6]} 5. h3 {[%clk 0:02:29.6]} 5...
O-O {[%clk 0:02:54.9]} 6. Nc3 {[%clk 0:02:28.5]} 6... a6 {[%clk 0:02:46.1]} 7.
a4 {[%clk 0:02:26.2]} 7... d6 {[%clk 0:02:18]} 8. Be3 {[%clk 0:02:22]} 8... Bxe3
{[%clk 0:02:12.6]} 9. fxe3 {[%clk 0:02:22.9]} 9... Ne7 {[%clk 0:02:07.5]} 10.
O-O {[%clk 0:02:20.9]} 10... Ng6 {[%clk 0:02:06.8]} 11. a5 {[%clk 0:02:16.3]}
11... c6 {[%clk 0:02:04.8]} 12. Bb3 {[%clk 0:02:15]} 12... d5 {[%clk 0:02:04.3]}
13. exd5 {[%clk 0:02:13.2]} 13... cxd5 {[%clk 0:02:05.2]} 14. d4 {[%clk
0:02:11.3]} 14... e4 {[%clk 0:02:00.8]} 15. Ne5 {[%clk 0:02:08.9]} 15... Be6
{[%clk 0:02:00.6]} 16. Nxg6 {[%clk 0:01:50.4]} 16... fxg6 {[%clk 0:01:51.5]} 17.
Qe1 {[%clk 0:01:47.6]} 17... Qd6 {[%clk 0:01:42.3]} 18. Ne2 {[%clk 0:01:28.5]}
18... Nh5 {[%clk 0:01:36.1]} 19. Qh4 {[%clk 0:01:27.9]} 19... h6 {[%clk
0:01:32.8]} 20. Rxf8+ {[%clk 0:01:00]} 20... Rxf8 {[%clk 0:01:33.7]} 21. Rf1
{[%clk 0:01:00]} 21... Rxf1+ {[%clk 0:01:09.5]} 22. Kxf1 {[%clk 0:01:00.9]}
22... Qc7 {[%clk 0:01:07.6]} 23. Qe1 {[%clk 0:00:50.9]} 23... g5 {[%clk
0:00:59]} 24. Kg1 {[%clk 0:00:50.4]} 24... Nf6 {[%clk 0:00:57]} 25. Qc3 {[%clk
0:00:48.1]} 25... Qb8 {[%clk 0:00:53]} 26. Qb4 {[%clk 0:00:45.5]} 26... g4
{[%clk 0:00:44.4]} 27. Qe7 {[%clk 0:00:43.1]} 27... Bf7 {[%clk 0:00:43]} 28. Nf4
{[%clk 0:00:37.3]} 28... gxh3 {[%clk 0:00:42]} 29. gxh3 {[%clk 0:00:38.2]} 29...
b6 {[%clk 0:00:24.3]} 30. axb6 {[%clk 0:00:34]} 30... Qxb6 {[%clk 0:00:25.2]}
31. Qc5 {[%clk 0:00:28.2]} 31... Qd8 {[%clk 0:00:24.8]} 32. Kf2 {[%clk
0:00:25.8]} 32... a5 {[%clk 0:00:23.6]} 33. Ke1 {[%clk 0:00:19.5]} 33... g5
{[%clk 0:00:23]} 34. Ne2 {[%clk 0:00:19.7]} 34... Be6 {[%clk 0:00:23.4]} 35. Qc6
{[%clk 0:00:16.7]} 35... Kf7 {[%clk 0:00:18]} 36. Ng3 {[%clk 0:00:13]} 36... h5
{[%clk 0:00:17.2]} 37. Kd2 {[%clk 0:00:11]} 37... h4 {[%clk 0:00:17.6]} 38. Ne2
{[%clk 0:00:08]} 38... Bxh3 {[%clk 0:00:18.1]} 39. c4 {[%clk 0:00:08.7]} 39...
Be6 {[%clk 0:00:16.7]} 40. cxd5 {[%clk 0:00:07.9]} 40... Bxd5 {[%clk 0:00:15.7]}
41. Bxd5+ {[%clk 0:00:08]} 41... Qxd5 {[%clk 0:00:16.4]} 42. Qc7+ {[%clk
0:00:08.6]} 42... Kg6 {[%clk 0:00:17]} 43. Nc3 {[%clk 0:00:08.6]} 43... Qb3
{[%clk 0:00:17.1]} 44. Kc1 {[%clk 0:00:07.8]} 44... a4 {[%clk 0:00:16.5]} 45.
Qc6 {[%clk 0:00:04.5]} 45... a3 {[%clk 0:00:16.3]} 46. bxa3 {[%clk 0:00:05.2]}
46... Qxa3+ {[%clk 0:00:16.5]} 47. Kc2 {[%clk 0:00:05.9]} 47... h3 {[%clk
0:00:08]} 48. Nxe4 {[%clk 0:00:06.1]} 48... Qe7 {[%clk 0:00:08.6]} 49. Nxf6
{[%clk 0:00:05.3]} 49... Qxf6 {[%clk 0:00:09.5]} 50. Qe8+ {[%clk 0:00:05.4]}
50... Kh6 {[%clk 0:00:09.1]} 51. Qc8 {[%clk 0:00:04.4]} 51... Qf2+ {[%clk
0:00:05.7]} 52. Kd3 {[%clk 0:00:04.8]} 52... Qf1+ {[%clk 0:00:05.9]} 53. Kd2
{[%clk 0:00:05.4]} 53... Kh5 {[%clk 0:00:06.1]} 54. d5 {[%clk 0:00:03.5]} 54...
Qg2+ {[%clk 0:00:06]} 55. Ke1 {[%clk 0:00:04.2]} 55... h2 {[%clk 0:00:05]} 56.
Qh8+ {[%clk 0:00:04]} 56... Kg4 {[%clk 0:00:05.5]} 57. Qc8+ {[%clk 0:00:04]}
57... Kg3 {[%clk 0:00:04.8]} 58. Qc7+ {[%clk 0:00:03.6]} 58... Kf3 {[%clk
0:00:05.4]} 59. Qf7+ {[%clk 0:00:03.1]} 59... Kxe3 {[%clk 0:00:04]} 60. Qa7+
{[%clk 0:00:01.3]} 60... Kf3 {[%clk 0:00:03.4]} 61. Qf7+ {[%clk 0:00:01.8]}
61... Ke3 {[%clk 0:00:03.9]} 62. Qe7+ {[%clk 0:00:02.4]} 62... Qe4 {[%clk
0:00:03.4]} 63. Qxg5+ {[%clk 0:00:01.8]} 63... Kd3+ {[%clk 0:00:03.2]} 64. Kf2
{[%clk 0:00:01.8]} 64... h1=Q {[%clk 0:00:03.1]} 65. Qg3+ {[%clk 0:00:02.7]}
65... Kd2 {[%clk 0:00:03.1]} 66. Qg5+ {[%clk 0:00:02.9]} 66... Kd3 {[%clk
0:00:03.6]} 67. Qg3+ {[%clk 0:00:03.4]} 67... Kc4 {[%clk 0:00:03.8]} 68. Qc7+
{[%clk 0:00:02.1]} 68... Kb3 {[%clk 0:00:04.2]} 69. Qb6+ {[%clk 0:00:02.1]}
69... Qb4 {[%clk 0:00:04.3]} 70. Qe3+ {[%clk 0:00:02.5]} 70... Kc2 {[%clk
0:00:04.6]} 0-1

[Event "Late-Titled-Tuesday-Blitz-January-16-2024"]
[Site "Chess.com"]
[Date "2024.01.16"]
[Round "4"]
[White "Siniauski"]
[Black "MyDream003"]
[Result "0-1"]
[WhiteElo "2603"]
[BlackElo "2860"]
[TimeControl "180+1"]
[EndTime "14:39:13 PST"]
[Termination "MyDream003 won by resignation"]

1. e4 {[%clk 0:03:00.9]} 1... c5 {[%clk 0:02:59]} 2. Nf3 {[%clk 0:03:01]} 2...
d6 {[%clk 0:02:59.1]} 3. c3 {[%clk 0:03:01.5]} 3... Nf6 {[%clk 0:02:58.6]} 4.
Be2 {[%clk 0:03:02.4]} 4... g6 {[%clk 0:02:58.1]} 5. O-O {[%clk 0:03:02.2]} 5...
Bg7 {[%clk 0:02:57.3]} 6. Re1 {[%clk 0:03:02.6]} 6... O-O {[%clk 0:02:56.3]} 7.
Bf1 {[%clk 0:03:03.2]} 7... Nc6 {[%clk 0:02:56]} 8. h3 {[%clk 0:03:03.5]} 8...
e5 {[%clk 0:02:54.4]} 9. d3 {[%clk 0:03:02.2]} 9... h6 {[%clk 0:02:49.9]} 10. a3
{[%clk 0:03:02.4]} 10... Be6 {[%clk 0:02:48.8]} 11. b4 {[%clk 0:03:02.3]} 11...
a6 {[%clk 0:02:46.8]} 12. Be3 {[%clk 0:02:58.6]} 12... b6 {[%clk 0:02:39.1]} 13.
Nbd2 {[%clk 0:02:58]} 13... Re8 {[%clk 0:02:36.9]} 14. Rb1 {[%clk 0:02:48]}
14... Qc7 {[%clk 0:02:30.8]} 15. g3 {[%clk 0:02:44.8]} 15... Rac8 {[%clk
0:02:22.8]} 16. Bg2 {[%clk 0:02:41.9]} 16... Red8 {[%clk 0:02:13.4]} 17. Qa4
{[%clk 0:02:38.2]} 17... Ra8 {[%clk 0:02:12.5]} 18. d4 {[%clk 0:02:13.8]} 18...
exd4 {[%clk 0:01:56.7]} 19. cxd4 {[%clk 0:02:13.9]} 19... cxd4 {[%clk
0:01:53.9]} 20. Nxd4 {[%clk 0:02:11.4]} 20... Nxd4 {[%clk 0:01:53.6]} 21. Bxd4
{[%clk 0:02:11.8]} 21... b5 {[%clk 0:01:54.2]} 22. Qd1 {[%clk 0:02:11.1]} 22...
Rac8 {[%clk 0:01:52.9]} 23. Nf1 {[%clk 0:01:40.2]} 23... Nd7 {[%clk 0:01:38.5]}
24. Bxg7 {[%clk 0:01:37.6]} 24... Kxg7 {[%clk 0:01:39.4]} 25. Qd4+ {[%clk
0:01:34.9]} 25... Kg8 {[%clk 0:01:36.9]} 26. f4 {[%clk 0:01:34.4]} 26... Qb6
{[%clk 0:01:33.6]} 27. Rbd1 {[%clk 0:01:32.2]} 27... Qxd4+ {[%clk 0:01:27.7]}
28. Rxd4 {[%clk 0:01:33.1]} 28... Nb6 {[%clk 0:01:28.6]} 29. Ne3 {[%clk
0:01:29.9]} 29... Rc3 {[%clk 0:01:23.2]} 30. f5 {[%clk 0:01:24.2]} 30... gxf5
{[%clk 0:01:05.6]} 31. exf5 {[%clk 0:01:25.1]} 31... Bc8 {[%clk 0:01:05.9]} 32.
Ng4 {[%clk 0:01:14.9]} 32... Kg7 {[%clk 0:01:01.9]} 33. f6+ {[%clk 0:01:13.9]}
33... Kg6 {[%clk 0:00:53.3]} 34. Ne5+ {[%clk 0:00:29.7]} 34... Kxf6 {[%clk
0:00:44.2]} 35. Rf1+ {[%clk 0:00:28.9]} 35... Kg7 {[%clk 0:00:30.9]} 36. Rxf7+
{[%clk 0:00:28.8]} 36... Kg8 {[%clk 0:00:30.8]} 37. Ra7 {[%clk 0:00:27.7]} 37...
Rxg3 {[%clk 0:00:26.5]} 38. Kh2 {[%clk 0:00:25.4]} 38... Rg7 {[%clk 0:00:21.5]}
39. Rxg7+ {[%clk 0:00:16.7]} 39... Kxg7 {[%clk 0:00:22.4]} 40. Nc6 {[%clk
0:00:17.5]} 40... Re8 {[%clk 0:00:22.7]} 41. Rxd6 {[%clk 0:00:17.2]} 41... Nc4
{[%clk 0:00:23.3]} 42. Rd3 {[%clk 0:00:14.1]} 42... Re2 {[%clk 0:00:22.2]} 43.
Kg3 {[%clk 0:00:14]} 43... Kf6 {[%clk 0:00:21.3]} 44. Bf3 {[%clk 0:00:13.6]}
44... Ra2 {[%clk 0:00:21.1]} 45. Rd8 {[%clk 0:00:09.2]} 45... Bb7 {[%clk
0:00:19.2]} 46. Rd7 {[%clk 0:00:07.7]} 46... Bxc6 {[%clk 0:00:18.7]} 47. Bxc6
{[%clk 0:00:08.6]} 47... Rxa3+ {[%clk 0:00:18.7]} 48. Kh4 {[%clk 0:00:08]} 48...
Ne5 {[%clk 0:00:17.6]} 49. Rd6+ {[%clk 0:00:08.4]} 49... Kf5 {[%clk 0:00:16.6]}
50. Be8 {[%clk 0:00:05.5]} 50... Nf3+ {[%clk 0:00:13.1]} 51. Kh5 {[%clk
0:00:04.4]} 51... Ne5 {[%clk 0:00:13.1]} 52. Kh4 {[%clk 0:00:04.5]} 52... Rb3
{[%clk 0:00:12.8]} 53. Rxh6 {[%clk 0:00:04.4]} 53... Rxb4+ {[%clk 0:00:11.5]}
54. Kg3 {[%clk 0:00:05.1]} 54... Rb3+ {[%clk 0:00:11.5]} 55. Kg2 {[%clk
0:00:05.5]} 55... a5 {[%clk 0:00:11.7]} 56. Ra6 {[%clk 0:00:05.4]} 56... Nc4
{[%clk 0:00:09.8]} 57. Bf7 {[%clk 0:00:03.7]} 57... Rb2+ {[%clk 0:00:08.8]} 58.
Kf3 {[%clk 0:00:04.1]} 58... Ra2 {[%clk 0:00:09.4]} 59. Bxc4 {[%clk 0:00:03.9]}
59... bxc4 {[%clk 0:00:10.3]} 60. Rc6 {[%clk 0:00:04.8]} 60... Ra3+ {[%clk
0:00:10]} 61. Kg2 {[%clk 0:00:05.4]} 61... c3 {[%clk 0:00:10.3]} 62. Kg3 {[%clk
0:00:05.6]} 62... Ke4 {[%clk 0:00:10.4]} 63. h4 {[%clk 0:00:05.7]} 63... Kd3
{[%clk 0:00:10.9]} 64. h5 {[%clk 0:00:06.1]} 64... Ra1 {[%clk 0:00:08.4]} 65.
Kg2 {[%clk 0:00:05.5]} 65... c2 {[%clk 0:00:08.5]} 66. h6 {[%clk 0:00:02.2]}
66... c1=Q {[%clk 0:00:07.9]} 67. Rd6+ {[%clk 0:00:02.9]} 67... Ke4 {[%clk
0:00:07.8]} 0-1

[Event "Late-Titled-Tuesday-Blitz-January-16-2024"]
[Site "Chess.com"]
[Date "2024.01.16"]
[Round "4"]
[White "zverr1"]
[Black "JCVanDamme10"]
[Result "0-1"]
[WhiteElo "2495"]
[BlackElo "2333"]
[TimeControl "180+1"]
[EndTime "14:39:49 PST"]
[Termination "JCVanDamme10 won by checkmate"]

1. e4 {[%clk 0:03:00.9]} 1... c5 {[%clk 0:02:33.1]} 2. Nf3 {[%clk 0:03:00.8]}
2... e6 {[%clk 0:02:32.7]} 3. b3 {[%clk 0:03:00.9]} 3... d6 {[%clk 0:02:31.5]}
4. d4 {[%clk 0:03:00.3]} 4... cxd4 {[%clk 0:02:30]} 5. Nxd4 {[%clk 0:03:01.2]}
5... Nf6 {[%clk 0:02:28.8]} 6. Bd3 {[%clk 0:03:00.1]} 6... Be7 {[%clk
0:02:28.6]} 7. Bb2 {[%clk 0:02:59.8]} 7... O-O {[%clk 0:02:29.1]} 8. c4 {[%clk
0:03:00.2]} 8... Nbd7 {[%clk 0:02:26.7]} 9. O-O {[%clk 0:03:00]} 9... Nc5 {[%clk
0:02:25.9]} 10. Nc3 {[%clk 0:02:59.9]} 10... Nxd3 {[%clk 0:02:25.9]} 11. Qxd3
{[%clk 0:03:00.8]} 11... a6 {[%clk 0:02:23.4]} 12. Rfd1 {[%clk 0:02:53.5]} 12...
Qc7 {[%clk 0:02:22.6]} 13. h3 {[%clk 0:02:53.5]} 13... b6 {[%clk 0:02:22.5]} 14.
Rac1 {[%clk 0:02:51.8]} 14... Bb7 {[%clk 0:02:22.6]} 15. Qe3 {[%clk 0:02:45.9]}
15... Rac8 {[%clk 0:02:22.3]} 16. Nf3 {[%clk 0:02:40.8]} 16... Nd7 {[%clk
0:02:20.2]} 17. Na4 {[%clk 0:02:36.2]} 17... Nc5 {[%clk 0:02:17.4]} 18. Nxc5
{[%clk 0:02:29.3]} 18... bxc5 {[%clk 0:02:17.6]} 19. e5 {[%clk 0:02:09]} 19...
Bxf3 {[%clk 0:02:04.8]} 20. exd6 {[%clk 0:02:07.2]} 20... Bxd6 {[%clk
0:02:02.7]} 21. Qxf3 {[%clk 0:02:04]} 21... Be5 {[%clk 0:02:02.5]} 22. Bxe5
{[%clk 0:01:37.2]} 22... Qxe5 {[%clk 0:02:03.4]} 23. Rd7 {[%clk 0:01:37.8]}
23... Rc7 {[%clk 0:02:02.6]} 24. Rcd1 {[%clk 0:01:34.2]} 24... Rxd7 {[%clk
0:02:02.5]} 25. Rxd7 {[%clk 0:01:35.1]} 25... Qa1+ {[%clk 0:02:02.4]} 26. Kh2
{[%clk 0:01:34.2]} 26... Qxa2 {[%clk 0:02:02.5]} 27. Rb7 {[%clk 0:01:26.2]}
27... Qd2 {[%clk 0:01:56.5]} 28. g3 {[%clk 0:01:23.5]} 28... Qd4 {[%clk
0:01:52.7]} 29. h4 {[%clk 0:01:21.3]} 29... a5 {[%clk 0:01:45.3]} 30. Kg2 {[%clk
0:01:18.1]} 30... a4 {[%clk 0:01:42.3]} 31. bxa4 {[%clk 0:01:10.3]} 31... Qxc4
{[%clk 0:01:42.8]} 32. a5 {[%clk 0:00:24.1]} 32... Qa6 {[%clk 0:01:38.2]} 33.
Rc7 {[%clk 0:00:24.3]} 33... Qxa5 {[%clk 0:01:36.1]} 34. Qc6 {[%clk 0:00:24.4]}
34... h5 {[%clk 0:01:24.3]} 35. Rb7 {[%clk 0:00:16.3]} 35... Qa8 {[%clk
0:01:15.6]} 36. Rc7 {[%clk 0:00:16.6]} 36... Qxc6+ {[%clk 0:01:15.1]} 37. Rxc6
{[%clk 0:00:17.5]} 37... g6 {[%clk 0:01:13.7]} 38. Rxc5 {[%clk 0:00:17.6]} 38...
Kg7 {[%clk 0:01:14.3]} 39. Rc6 {[%clk 0:00:16.8]} 39... Rd8 {[%clk 0:01:14]} 40.
Rc7 {[%clk 0:00:16.9]} 40... Rd4 {[%clk 0:01:13.7]} 41. Rb7 {[%clk 0:00:17]}
41... Rd3 {[%clk 0:01:13.3]} 42. Rc7 {[%clk 0:00:17.2]} 42... Rb3 {[%clk
0:01:13.2]} 43. Rd7 {[%clk 0:00:17.3]} 43... e5 {[%clk 0:01:12.2]} 44. Re7
{[%clk 0:00:17.5]} 44... Kf6 {[%clk 0:01:11.9]} 45. Ra7 {[%clk 0:00:18.2]} 45...
Ke6 {[%clk 0:01:11]} 46. Ra6+ {[%clk 0:00:18.1]} 46... Kf5 {[%clk 0:01:11.2]}
47. Ra7 {[%clk 0:00:18.3]} 47... f6 {[%clk 0:01:11.6]} 48. Ra5 {[%clk
0:00:18.2]} 48... Rb2 {[%clk 0:01:10.7]} 49. Rc5 {[%clk 0:00:18]} 49... Ra2
{[%clk 0:01:09.8]} 50. Rb5 {[%clk 0:00:18.1]} 50... Ke6 {[%clk 0:01:08.3]} 51.
Rb6+ {[%clk 0:00:18]} 51... Kf5 {[%clk 0:01:09]} 52. Rb5 {[%clk 0:00:18.5]}
52... g5 {[%clk 0:01:08.9]} 53. hxg5 {[%clk 0:00:17.2]} 53... Kxg5 {[%clk
0:01:09]} 54. Kf3 {[%clk 0:00:15.2]} 54... h4 {[%clk 0:01:05.1]} 55. gxh4+
{[%clk 0:00:15]} 55... Kxh4 {[%clk 0:01:05.4]} 56. Rb8 {[%clk 0:00:13.7]} 56...
Kg5 {[%clk 0:01:05.1]} 57. Rb3 {[%clk 0:00:10.8]} 57... Kf5 {[%clk 0:01:04.5]}
58. Rc3 {[%clk 0:00:10.4]} 58... Ra4 {[%clk 0:01:03.9]} 59. Rb3 {[%clk
0:00:10.1]} 59... Rh4 {[%clk 0:01:03]} 60. Kg3 {[%clk 0:00:10.1]} 60... Rg4+
{[%clk 0:01:02.8]} 61. Kf3 {[%clk 0:00:10.1]} 61... Rd4 {[%clk 0:01:00.4]} 62.
Kg3 {[%clk 0:00:09.7]} 62... Kg5 {[%clk 0:00:58.8]} 63. Ra3 {[%clk 0:00:08.3]}
63... f5 {[%clk 0:00:58.2]} 64. Rb3 {[%clk 0:00:07.9]} 64... e4 {[%clk
0:00:57.8]} 65. Rb8 {[%clk 0:00:07.2]} 65... Rd3+ {[%clk 0:00:56.7]} 66. Kg2
{[%clk 0:00:07.3]} 66... Kf4 {[%clk 0:00:57.3]} 67. Rb2 {[%clk 0:00:06.3]} 67...
Rc3 {[%clk 0:00:55.4]} 68. Ra2 {[%clk 0:00:06.4]} 68... Kg4 {[%clk 0:00:55.1]}
69. Ra8 {[%clk 0:00:05.7]} 69... Rc2 {[%clk 0:00:53]} 70. Ra3 {[%clk 0:00:06.2]}
70... f4 {[%clk 0:00:51.2]} 71. Kg1 {[%clk 0:00:06.7]} 71... f3 {[%clk
0:00:46.7]} 72. Re3 {[%clk 0:00:06.6]} 72... Kf4 {[%clk 0:00:43.1]} 73. Re1
{[%clk 0:00:06.7]} 73... Rd2 {[%clk 0:00:42.3]} 74. Ra1 {[%clk 0:00:05.5]} 74...
Re2 {[%clk 0:00:39.7]} 75. Kf1 {[%clk 0:00:05.1]} 75... Rc2 {[%clk 0:00:39]} 76.
Kg1 {[%clk 0:00:05]} 76... e3 {[%clk 0:00:36.7]} 77. fxe3+ {[%clk 0:00:04.6]}
77... Kg3 {[%clk 0:00:36.8]} 78. e4 {[%clk 0:00:01.5]} 78... Rg2+ {[%clk
0:00:35.8]} 79. Kf1 {[%clk 0:00:02.1]} 79... Rh2 {[%clk 0:00:35.7]} 80. Kg1
{[%clk 0:00:01.6]} 80... f2+ {[%clk 0:00:35.3]} 81. Kf1 {[%clk 0:00:02.4]} 81...
Rh1+ {[%clk 0:00:35.9]} 82. Ke2 {[%clk 0:00:03.3]} 82... Rxa1 {[%clk 0:00:36.1]}
83. Ke3 {[%clk 0:00:04.2]} 83... Re1+ {[%clk 0:00:36]} 84. Kd4 {[%clk
0:00:05.1]} 84... Rxe4+ {[%clk 0:00:36.1]} 85. Kxe4 {[%clk 0:00:05.5]} 85...
f1=Q {[%clk 0:00:35.1]} 86. Kd5 {[%clk 0:00:06.4]} 86... Qd3+ {[%clk 0:00:34.4]}
87. Kc6 {[%clk 0:00:07.3]} 87... Qc4+ {[%clk 0:00:34.2]} 88. Kb7 {[%clk
0:00:08.2]} 88... Qb5+ {[%clk 0:00:33.6]} 89. Ka8 {[%clk 0:00:09.1]} 89... Kf4
{[%clk 0:00:32.5]} 90. Ka7 {[%clk 0:00:10]} 90... Ke5 {[%clk 0:00:33]} 91. Ka8
{[%clk 0:00:10.9]} 91... Kd6 {[%clk 0:00:33.7]} 92. Ka7 {[%clk 0:00:11.8]} 92...
Kc7 {[%clk 0:00:34.4]} 93. Ka8 {[%clk 0:00:12.7]} 93... Qb7# {[%clk 0:00:34.8]}
0-1

[Event "Late-Titled-Tuesday-Blitz-January-16-2024"]
[Site "Chess.com"]
[Date "2024.01.16"]
[Round "5"]
[White "Kiborg95"]
[Black "bescmelasti"]
[Result "0-1"]
[WhiteElo "2859"]
[BlackElo "2676"]
[TimeControl "180+1"]
[EndTime "14:48:16 PST"]
[Termination "bescmelasti won by resignation"]

1. e4 {[%clk 0:02:54]} 1... c5 {[%clk 0:02:59.3]} 2. Nc3 {[%clk 0:02:54]} 2...
e6 {[%clk 0:02:58.2]} 3. Nge2 {[%clk 0:02:54]} 3... Nc6 {[%clk 0:02:56.5]} 4. d4
{[%clk 0:02:54.4]} 4... cxd4 {[%clk 0:02:56.9]} 5. Nxd4 {[%clk 0:02:55.3]} 5...
Nf6 {[%clk 0:02:57.5]} 6. Ndb5 {[%clk 0:02:55.7]} 6... Bc5 {[%clk 0:02:55.1]} 7.
Bf4 {[%clk 0:02:55.3]} 7... O-O {[%clk 0:02:54.9]} 8. Bc7 {[%clk 0:02:55.8]}
8... Qe7 {[%clk 0:02:55.5]} 9. Bd6 {[%clk 0:02:56.3]} 9... Bxd6 {[%clk
0:02:56.2]} 10. Qxd6 {[%clk 0:02:57]} 10... Qd8 {[%clk 0:02:56.9]} 11. Nc7
{[%clk 0:02:53.7]} 11... Rb8 {[%clk 0:02:56.5]} 12. Be2 {[%clk 0:02:54.1]} 12...
b5 {[%clk 0:02:55.3]} 13. e5 {[%clk 0:02:54.7]} 13... Ne8 {[%clk 0:02:52.9]} 14.
Nxe8 {[%clk 0:02:55.1]} 14... Rxe8 {[%clk 0:02:53.8]} 15. O-O {[%clk 0:02:54.3]}
15... b4 {[%clk 0:02:53.7]} 16. Ne4 {[%clk 0:02:54.9]} 16... Bb7 {[%clk
0:02:54.2]} 17. Nc5 {[%clk 0:02:54.5]} 17... Ne7 {[%clk 0:02:53.9]} 18. Qxd7
{[%clk 0:02:46.5]} 18... Qxd7 {[%clk 0:02:28.4]} 19. Nxd7 {[%clk 0:02:47.4]}
19... Rbc8 {[%clk 0:02:28.9]} 20. Rfd1 {[%clk 0:02:28.4]} 20... Nd5 {[%clk
0:02:25.8]} 0-1

[Event "Late-Titled-Tuesday-Blitz-January-16-2024"]
[Site "Chess.com"]
[Date "2024.01.16"]
[Round "5"]
[White "kai_nov"]
[Black "ThaBarWa"]
[Result "1-0"]
[WhiteElo "2264"]
[BlackElo "2387"]
[TimeControl "180+1"]
[EndTime "14:48:35 PST"]
[Termination "kai_nov won by resignation"]

1. d4 {[%clk 0:03:00.9]} 1... d5 {[%clk 0:02:49.2]} 2. c4 {[%clk 0:02:56.3]}
2... e6 {[%clk 0:02:49.2]} 3. Nc3 {[%clk 0:02:56.5]} 3... a6 {[%clk 0:02:49.4]}
4. Nf3 {[%clk 0:02:36.8]} 4... Nf6 {[%clk 0:02:42.5]} 5. Bg5 {[%clk 0:02:35.7]}
5... dxc4 {[%clk 0:02:23.6]} 6. e3 {[%clk 0:02:21.5]} 6... b5 {[%clk 0:02:20.4]}
7. a4 {[%clk 0:02:17.1]} 7... Bb7 {[%clk 0:02:12.3]} 8. axb5 {[%clk 0:02:11.1]}
8... axb5 {[%clk 0:02:05]} 9. Rxa8 {[%clk 0:02:12]} 9... Bxa8 {[%clk 0:02:05.6]}
10. Nxb5 {[%clk 0:02:12]} 10... Bb4+ {[%clk 0:02:06.2]} 11. Nc3 {[%clk
0:02:11.8]} 11... h6 {[%clk 0:02:02.6]} 12. Bxf6 {[%clk 0:02:10.7]} 12... Qxf6
{[%clk 0:02:01.5]} 13. Qa4+ {[%clk 0:02:10]} 13... Nc6 {[%clk 0:02:00.7]} 14.
Qxa8+ {[%clk 0:02:08.2]} 14... Nd8 {[%clk 0:01:58.8]} 15. Qa4+ {[%clk
0:02:06.8]} 1-0

[Event "Late-Titled-Tuesday-Blitz-January-16-2024"]
[Site "Chess.com"]
[Date "2024.01.16"]
[Round "5"]
[White "giomar27"]
[Black "EcosseKillie"]
[Result "0-1"]
[WhiteElo "2397"]
[BlackElo "2266"]
[TimeControl "180+1"]
[EndTime "14:49:30 PST"]
[Termination "EcosseKillie won by resignation"]

1. d4 {[%clk 0:03:00.9]} 1... Nc6 {[%clk 0:02:59.2]} 2. Bf4 {[%clk 0:02:58]}
2... e5 {[%clk 0:02:58.5]} 3. dxe5 {[%clk 0:02:55.6]} 3... g5 {[%clk 0:02:58.8]}
4. Bg3 {[%clk 0:02:53]} 4... Bg7 {[%clk 0:02:59.7]} 5. Nc3 {[%clk 0:02:48.9]}
5... h5 {[%clk 0:02:54.6]} 6. h3 {[%clk 0:02:46.3]} 6... Nge7 {[%clk 0:02:51]}
7. e4 {[%clk 0:02:46.1]} 7... Ng6 {[%clk 0:02:45.7]} 8. Qd2 {[%clk 0:02:42.1]}
8... Ncxe5 {[%clk 0:02:39.9]} 9. O-O-O {[%clk 0:02:41.3]} 9... h4 {[%clk
0:02:32.6]} 10. Bh2 {[%clk 0:02:41]} 10... d6 {[%clk 0:02:33]} 11. Be2 {[%clk
0:02:33.2]} 11... g4 {[%clk 0:02:22.8]} 12. hxg4 {[%clk 0:02:23.1]} 12... Bh6
{[%clk 0:02:20.8]} 13. f4 {[%clk 0:02:19.4]} 13... Nxg4 {[%clk 0:02:16.5]} 14.
Nh3 {[%clk 0:02:17.5]} 14... Nxh2 {[%clk 0:02:15]} 15. Rxh2 {[%clk 0:02:14.2]}
15... Bxh3 {[%clk 0:02:14.9]} 16. Rxh3 {[%clk 0:02:12.1]} 16... Bxf4 {[%clk
0:02:14.8]} 17. Re3 {[%clk 0:02:12.8]} 17... c6 {[%clk 0:01:57.2]} 18. Kb1
{[%clk 0:02:12.3]} 18... Qg5 {[%clk 0:01:47.1]} 19. Bc4 {[%clk 0:02:00.1]} 19...
Bxe3 {[%clk 0:01:44.2]} 20. Qxd6 {[%clk 0:02:00.7]} 20... Rd8 {[%clk 0:01:34.8]}
21. Bxf7+ {[%clk 0:01:58]} 21... Kxf7 {[%clk 0:01:30.9]} 22. Rf1+ {[%clk
0:01:58.7]} 0-1

[Event "Late-Titled-Tuesday-Blitz-January-16-2024"]
[Site "Chess.com"]
[Date "2024.01.16"]
[Round "5"]
[White "Perecke"]
[Black "Hirna2005"]
[Result "1-0"]
[WhiteElo "2552"]
[BlackElo "2264"]
[TimeControl "180+1"]
[EndTime "14:49:42 PST"]
[Termination "Perecke won by resignation"]

1. e4 {[%clk 0:02:37.8]} 1... g6 {[%clk 0:03:00.2]} 2. d4 {[%clk 0:02:33]} 2...
Bg7 {[%clk 0:03:00.4]} 3. f4 {[%clk 0:02:21.6]} 3... d6 {[%clk 0:03:00.5]} 4.
Nf3 {[%clk 0:02:22]} 4... Nf6 {[%clk 0:02:59.6]} 5. Nc3 {[%clk 0:02:22]} 5...
O-O {[%clk 0:02:58.8]} 6. Bd3 {[%clk 0:02:21.5]} 6... a6 {[%clk 0:02:57.4]} 7.
e5 {[%clk 0:02:18.8]} 7... Nfd7 {[%clk 0:02:54]} 8. h4 {[%clk 0:02:17.3]} 8...
c5 {[%clk 0:02:49.5]} 9. h5 {[%clk 0:02:11.4]} 9... cxd4 {[%clk 0:02:48.6]} 10.
hxg6 {[%clk 0:02:11.3]} 10... fxg6 {[%clk 0:02:42.6]} 11. Bc4+ {[%clk 0:02:07]}
11... Kh8 {[%clk 0:02:34.1]} 12. Ng5 {[%clk 0:01:50.2]} 12... h6 {[%clk
0:02:33]} 13. Qd3 {[%clk 0:01:43.1]} 13... Qe8 {[%clk 0:02:16.1]} 14. Bf7 {[%clk
0:01:37.6]} 14... Rxf7 {[%clk 0:02:09.7]} 15. Qxg6 {[%clk 0:01:37]} 15... Nf8
{[%clk 0:02:09.5]} 16. Nxf7+ {[%clk 0:01:30.6]} 16... Qxf7 {[%clk 0:01:59.1]}
17. Qxf7 {[%clk 0:01:31.5]} 17... dxc3 {[%clk 0:01:59.4]} 18. f5 {[%clk
0:01:27.5]} 18... Nh7 {[%clk 0:01:49]} 19. Bxh6 {[%clk 0:01:22.2]} 1-0